bitfinex-derivatives/quotes_BTCF0:USTF0_20210104
["timestamp","ask_amount","ask_price","bid_price","bid_amount"]
[1609750315620,0.14033567,31966.0,31963.0,5.18593567]
[1609750318225,0.14033567,31966.0,31963.0,0.14033567]
[1609750318425,0.14033567,31966.0,31951.0,0.09871]
[1609750318626,0.14033567,31966.0,31948.0,3.6183]
[1609750319628,0.13199,31979.0,31948.0,3.6183]
[1609750319827,0.13199,31979.0,31958.0,0.09946]
[1609750321631,0.14033567,31959.0,31958.0,0.09946]
[1609750322730,0.13199,31979.0,31958.0,0.09946]
[1609750323031,0.2959,31983.0,31958.0,0.09946]
[1609750323230,0.2959,31983.0,31959.0,3.8062]
[1609750323431,0.2959,31983.0,31959.0,3.9833]
[1609750323631,0.14033567,31974.0,31973.0,0.14033567]
[1609750325835,0.14033567,31974.0,31959.0,3.9833]
[1609750326037,0.2959,31983.0,31959.0,3.9833]
[1609750326637,0.10537,31988.0,31959.0,3.9833]
[1609750327636,0.14033567,31986.0,31977.0,0.14033567]
[1609750329542,0.10537,31988.0,31984.0,0.14033567]
[1609750329843,0.2992,32006.0,31984.0,0.14033567]
[1609750330044,0.2992,32006.0,31980.0,4.9044]
[1609750330244,1.09971,32000.0,31980.0,4.9044]
[1609750331647,0.14033567,31996.0,31990.0,0.14033567]
[1609750333549,0.14033567,31991.0,31990.0,0.14033567]
[1609750333950,0.14033567,31991.0,31980.0,4.9044]
[1609750334148,1.0,32000.0,31980.0,4.9044]
[1609750334349,1.0,32000.0,31980.0,5.03209]
[1609750335650,0.14033567,31996.0,31995.0,0.14033567]
[1609750336050,1.0,32000.0,31995.0,0.14033567]
[1609750336450,1.0,32000.0,31995.0,0.26338567]
[1609750337651,0.14033567,31996.0,31995.0,0.26338567]
[1609750338154,0.0931,31999.0,31995.0,0.26338567]
[1609750338752,1.0,32000.0,31995.0,0.26338567]
[1609750339653,1.0,32000.0,31999.0,0.14033567]
[1609750339853,1.0,32000.0,31995.0,0.12305]
[1609750341555,1.0,32000.0,31992.0,4.3594]
[1609750342457,1.0,32000.0,31992.0,4.48789]
[1609750343658,1.0,32000.0,31999.0,0.14033567]
[1609750343858,1.0,32000.0,31999.0,0.26180567]
[1609750345061,0.6333,32000.0,31999.0,0.26180567]
[1609750347062,0.0924,32021.0,31999.0,0.26180567]
[1609750347262,0.0924,32021.0,32007.0,4.4701]
[1609750347663,0.0924,32021.0,32020.0,0.14033567]
[1609750347864,0.0933,32024.0,32020.0,0.26300567]
[1609750348365,0.0933,32024.0,32020.0,0.12267]
[1609750348763,0.14033567,32035.0,32020.0,0.12267]
[1609750349264,0.0949,32034.0,32020.0,0.12267]
[1609750349464,0.14033567,32035.0,32020.0,0.12267]
[1609750349864,0.14033567,32021.0,32020.0,0.26300567]
[1609750350465,0.14033567,32021.0,32020.0,0.12267]
[1609750350665,0.0944,32021.0,32020.0,0.12267]
[1609750350867,0.09865,32045.0,32020.0,0.12267]
[1609750351766,0.09865,32045.0,32029.0,0.14033567]
[1609750351966,0.09865,32045.0,32028.0,0.13826]
[1609750352366,0.0928,32044.0,32028.0,0.13826]
[1609750353166,0.0928,32044.0,32008.0,3.8093]
[1609750353367,0.8182,32044.0,32008.0,3.8093]
[1609750353566,0.0928,32044.0,32000.0,0.1771]
[1609750353766,5.0188,32042.0,32000.0,0.1771]
[1609750357872,0.14033567,32011.0,32000.0,0.1771]
[1609750359174,0.14033567,32011.0,31999.0,0.12147]
[1609750359374,0.14033567,32011.0,31978.0,0.1771]
[1609750359775,0.14033567,31994.0,31992.0,0.14033567]
[1609750360376,0.12043,32000.0,31992.0,0.14033567]
[1609750361778,0.12043,32000.0,31999.0,0.14033567]
[1609750361979,0.21523,32000.0,31999.0,0.14033567]
[1609750362180,0.12043,32000.0,31999.0,0.14033567]
[1609750363280,0.21423,32000.0,31999.0,0.14033567]
[1609750364280,0.0938,32000.0,31999.0,0.14033567]
[1609750365081,0.0938,32000.0,31999.0,0.25388567]
[1609750365781,0.14033567,32022.0,31999.0,0.25388567]
[1609750365981,0.14033567,32022.0,32000.0,0.1771]
[1609750366183,0.26796567,32022.0,32000.0,0.1771]
[1609750366782,0.0933,32021.0,32000.0,0.1771]
[1609750367182,0.26796567,32022.0,32000.0,0.1771]
[1609750367884,0.12763,32022.0,32018.0,0.14033567]
[1609750368285,0.12763,32022.0,32007.0,0.12407]
[1609750369586,0.0948,32021.0,32007.0,0.12407]
[1609750369986,0.14033567,32014.0,32012.0,0.14033567]
[1609750371086,0.094,32013.0,32007.0,0.12407]
[1609750371288,0.0934,32012.0,32007.0,0.12407]
[1609750371889,0.14033567,32008.0,32007.0,0.12407]
[1609750372289,0.14033567,32008.0,32000.0,0.1771]
[1609750372488,0.0934,32012.0,32000.0,0.1771]
[1609750372691,0.15344,32015.0,32000.0,0.1771]
[1609750373693,0.0924,32014.0,32000.0,0.1771]
[1609750373894,0.14033567,32001.0,32000.0,0.1771]
[1609750374994,0.23513567,32001.0,32000.0,0.1771]
[1609750375195,0.23513567,32001.0,31983.0,3.59804]
[1609750375395,0.23513567,32001.0,31984.0,0.1771]
[1609750375996,0.0948,32001.0,31989.0,0.14033567]
[1609750376296,0.0939,32000.0,31984.0,0.1771]
[1609750377900,0.14033567,31986.0,31984.0,0.31743567]
[1609750379502,0.12807,32008.0,31984.0,0.31743567]
[1609750379703,5.2,32013.0,31984.0,0.31743567]
[1609750379903,0.14033567,31992.0,31990.0,0.14033567]
[1609750380103,5.2,32013.0,31990.0,0.14033567]
[1609750380303,5.2,32013.0,31990.0,0.26284567]
[1609750380504,5.2,32013.0,31990.0,0.12251]
[1609750381004,3.86064721,32051.0,31990.0,0.12251]
[1609750381204,3.6988,32035.0,31990.0,0.12251]
[1609750381805,0.12763,32022.0,31990.0,0.12251]
[1609750382005,3.6988,32035.0,32005.0,0.14033567]
[1609750383005,0.0938,32022.0,32005.0,0.14033567]
[1609750383206,0.15513,32024.0,32005.0,0.14033567]
[1609750383406,0.095,32022.0,32005.0,0.14033567]
[1609750384006,0.095,32022.0,32014.0,0.14033567]
[1609750385006,0.095,32022.0,32011.0,0.1164]
[1609750385208,3.07048244,32068.0,32011.0,0.1164]
[1609750385408,0.09921,32030.0,32011.0,0.1164]
[1609750386210,0.094,32022.0,32011.0,0.1164]
[1609750386411,0.09921,32030.0,32011.0,0.1164]
[1609750387911,0.09921,32030.0,32018.0,0.14033567]
[1609750389914,0.09921,32030.0,32024.0,0.14033567]
[1609750389915,0.14033567,32025.0,32024.0,0.14033567]
[1609750390114,0.23283567,32025.0,32024.0,0.14033567]
[1609750391315,0.0925,32025.0,32011.0,0.1164]
[1609750391713,0.0925,32025.0,32004.0,0.15005]
[1609750391714,0.0925,32025.0,32000.0,0.1771]
[1609750391917,0.14033567,32024.0,32023.0,0.14033567]
[1609750392818,0.23383567,32024.0,32023.0,0.14033567]
[1609750393019,0.0935,32024.0,32023.0,0.14033567]
[1609750394221,0.14033567,32027.0,32023.0,0.14033567]
[1609750395223,0.0933,32026.0,32023.0,0.14033567]
[1609750395822,0.0933,32026.0,32022.0,0.1208]
[1609750396424,0.14033567,32027.0,32022.0,0.1208]
[1609750397425,0.0935,32026.0,32022.0,0.1208]
[1609750397823,0.14033567,32027.0,32022.0,0.1208]
[1609750398024,0.14033567,32023.0,32022.0,0.1208]
[1609750398825,0.23493567,32023.0,32022.0,0.1208]
[1609750399426,0.23493567,32023.0,32000.0,0.29465]
[1609750399930,0.14033567,32007.0,32006.0,0.14033567]
[1609750400532,0.14033567,32007.0,32000.0,0.29465]
[1609750401129,0.23493567,32007.0,32000.0,0.29465]
[1609750401328,0.14033567,32007.0,32000.0,0.29465]
[1609750401929,0.14033567,32001.0,32000.0,0.29465]
[1609750402330,4.07623567,32001.0,31991.0,0.356]
[1609750402532,4.07623567,32001.0,31990.0,0.12251]
[1609750402930,4.07623567,32001.0,31982.0,2.0966469]
[1609750403434,0.0933,32000.0,31982.0,2.0966469]
[1609750403633,3.98283567,32001.0,31982.0,2.0966469]
[1609750403836,3.98283567,32001.0,31980.0,0.1771]
[1609750404035,3.8425,32001.0,31982.0,0.11026]
[1609750404737,0.0949,32000.0,31982.0,0.11026]
[1609750405336,4.6707,31986.0,31982.0,0.11026]
[1609750406038,4.6707,31986.0,31980.0,0.1771]
[1609750406239,0.0929,31985.0,31962.0,0.1771]
[1609750406638,0.0929,31985.0,31977.0,0.14033567]
[1609750406838,0.0929,31985.0,31977.0,0.29216567]
[1609750407338,0.0936,31984.0,31977.0,0.29216567]
[1609750408540,0.0936,31984.0,31982.0,0.14033567]
[1609750409341,0.0936,31984.0,31977.0,0.15183]
[1609750410542,0.14033567,31983.0,31981.0,0.14033567]
[1609750410941,0.14033567,31983.0,31977.0,0.15183]
[1609750411143,0.12671,31994.0,31977.0,0.15183]
[1609750411342,5.0012,32022.0,31977.0,0.15183]
[1609750411545,0.0938,32005.0,31977.0,0.15183]
[1609750411744,0.0938,32005.0,31978.0,0.1771]
[1609750412545,0.23413567,32005.0,32004.0,0.14033567]
[1609750412745,0.14033567,32005.0,32004.0,0.24883567]
[1609750412944,0.14033567,32005.0,32004.0,0.1085]
[1609750413746,0.23313567,32005.0,32004.0,0.1085]
[1609750415049,0.23313567,32005.0,31995.0,0.09902]
[1609750416150,0.0924,32004.0,31995.0,0.09902]
[1609750416551,0.14033567,31996.0,31995.0,0.09902]
[1609750417853,0.23413567,31996.0,31995.0,0.09902]
[1609750418054,0.14033567,31996.0,31985.0,4.7607]
[1609750418554,0.14033567,31986.0,31985.0,4.7607]
[1609750421255,0.23363567,31986.0,31985.0,4.7607]
[1609750423056,0.23363567,31986.0,31983.0,0.14033567]
[1609750423857,0.14033567,31986.0,31983.0,0.14033567]
[1609750424469,0.14033567,31986.0,31978.0,0.7075]
[1609750424658,0.12625,31998.0,31978.0,0.7075]
[1609750425063,0.12625,31998.0,31978.0,0.1771]
[1609750426760,0.14033567,31979.0,31978.0,0.1771]
[1609750432265,0.66633567,31979.0,31978.0,0.1771]
[1609750433469,0.66633567,31979.0,31977.0,0.15183]
[1609750433868,0.66633567,31979.0,31969.0,0.14033567]
[1609750434369,0.14033567,31979.0,31969.0,0.14033567]
[1609750434571,4.0623,31976.0,31969.0,0.14033567]
[1609750434770,0.14033567,31970.0,31967.0,0.356]
[1609750436072,0.78753567,31970.0,31967.0,0.356]
[1609750436273,0.78753567,31970.0,31956.0,2.07575333]
[1609750436874,0.09867,31982.0,31956.0,2.07575333]
[1609750436875,0.14033567,31957.0,31956.0,2.07575333]
[1609750437076,4.02243567,31957.0,31956.0,2.07575333]
[1609750439580,0.14033567,31957.0,31956.0,2.07575333]
[1609750439979,3.651,31971.0,31956.0,2.07575333]
[1609750440179,0.10075,31974.0,31956.0,2.07575333]
[1609750440780,0.2969,31976.0,31964.0,0.14033567]
[1609750440979,3.9231,31971.0,31964.0,0.14033567]
[1609750442085,0.2969,31976.0,31964.0,0.14033567]
[1609750442287,0.2969,31976.0,31964.0,0.25770567]
[1609750442784,0.14033567,31968.0,31964.0,0.25770567]
[1609750443184,0.14033567,31968.0,31964.0,0.11737]
[1609750444884,0.14033567,31968.0,31967.0,0.14033567]
[1609750454496,0.14033567,31968.0,31964.0,0.11737]
[1609750454698,0.87213567,31968.0,31958.0,2.11717422]
[1609750454897,3.8864,31967.0,31958.0,2.11717422]
[1609750455299,3.8864,31967.0,31952.0,2.11762158]
[1609750456098,3.8864,31967.0,31951.0,0.14417]
[1609750456298,3.8864,31967.0,31948.0,2.11764681]
[1609750456900,0.161,31982.0,31958.0,0.14033567]
[1609750457101,0.161,31982.0,31958.0,0.24715567]
[1609750459002,0.14033567,31959.0,31958.0,0.24715567]
[1609750462604,0.161,31982.0,31958.0,0.24715567]
[1609750462805,0.10611,31989.0,31958.0,0.24715567]
[1609750463005,0.2793,31997.0,31969.0,0.14033567]
[1609750463206,0.2793,31997.0,31970.0,0.1771]
[1609750465006,0.2793,31997.0,31991.0,0.14033567]
[1609750465706,4.4689,32019.0,31991.0,0.14033567]
[1609750465907,0.2925,32018.0,31992.0,0.1771]
[1609750466904,0.2925,32018.0,32003.0,0.14033567]
[1609750467506,0.2925,32018.0,31992.0,0.1771]
[1609750467707,4.6286,32011.0,31992.0,0.1771]
[1609750468108,4.72879,32011.0,31992.0,0.1771]
[1609750468910,0.14033567,31993.0,31992.0,0.1771]
[1609750469311,0.14033567,31993.0,31985.0,0.14127]
[1609750470113,5.1555,31992.0,31985.0,0.14127]
[1609750470314,5.1555,31992.0,31971.0,0.1771]
[1609750471117,5.1555,31992.0,31979.0,0.25732567]
[1609750471717,5.1555,31992.0,31979.0,0.11699]
[1609750472318,0.14456,31999.0,31979.0,0.11699]
[1609750472919,0.14033567,31980.0,31979.0,0.11699]
[1609750474023,0.23423567,31980.0,31979.0,0.11699]
[1609750476226,0.23423567,31980.0,31974.0,0.14033567]
[1609750477026,0.23423567,31980.0,31979.0,0.14033567]
[1609750477227,0.23423567,31980.0,31979.0,0.23801567]
[1609750477828,0.23423567,31980.0,31979.0,0.09768]
[1609750479231,0.14033567,31980.0,31979.0,0.09768]
[1609750480331,0.23473567,31980.0,31979.0,0.09768]
[1609750481133,0.14033567,31980.0,31979.0,0.09768]
[1609750482434,0.14033567,31980.0,31972.0,0.14033567]
[1609750483035,0.14033567,31973.0,31972.0,0.14033567]
[1609750484137,0.23323567,31973.0,31972.0,0.14033567]
[1609750484741,0.0929,31973.0,31972.0,0.14033567]
[1609750485140,0.14033567,31977.0,31972.0,0.14033567]
[1609750486040,0.0927,31976.0,31972.0,0.14033567]
[1609750487042,0.0927,31976.0,31972.0,2.23435828]
[1609750487745,0.0927,31976.0,31974.0,2.09988237]
[1609750488345,2.8943436,32043.0,31974.0,2.09988237]
[1609750488544,2.89413492,32044.0,31974.0,2.09988237]
[1609750488945,3.9121,32024.0,31975.0,3.5748]
[1609750489145,3.9121,32024.0,31975.0,3.72563]
[1609750489346,4.0055,32024.0,31976.0,2.10105753]
[1609750489845,4.0055,32024.0,31980.0,2.0997117]
[1609750490448,0.0928,32017.0,31980.0,2.0997117]
[1609750490647,0.0928,32017.0,31981.0,2.10047786]
[1609750491047,0.0928,32017.0,32000.0,0.14033567]
[1609750491247,0.03928311,34001.0,32000.0,0.14033567]
[1609750491447,0.03928311,34001.0,32000.0,0.27220567]
[1609750491448,4.1594,32035.0,32000.0,0.27220567]
[1609750492248,0.0946,32024.0,32000.0,0.27220567]
[1609750492551,4.1594,32035.0,32000.0,0.27220567]
[1609750493150,0.14033567,32001.0,32000.0,0.27220567]
[1609750493553,0.23303567,32001.0,32000.0,0.13187]
[1609750495156,0.14033567,32001.0,32000.0,0.13187]
[1609750495557,0.14033567,32001.0,31996.0,0.1771]
[1609750497157,0.14033567,31997.0,31996.0,0.1771]
[1609750497359,0.14033567,31997.0,31991.0,0.14033567]
[1609750498860,0.14033567,31997.0,31985.0,4.5581]
[1609750499260,0.14033567,31989.0,31987.0,0.14033567]
[1609750500761,3.8965,32005.0,31978.0,0.1771]
[1609750501264,3.8965,32005.0,31988.0,0.14033567]
[1609750501663,3.8965,32005.0,31988.0,0.28954567]
[1609750503266,0.14033567,31989.0,31988.0,0.28954567]
[1609750504369,0.14033567,31989.0,31988.0,0.14921]
[1609750505671,4.23123567,31989.0,31988.0,0.14921]
[1609750506672,4.23123567,31989.0,31978.0,0.1771]
[1609750506873,0.14033567,31989.0,31978.0,0.1771]
[1609750507272,0.14033567,31979.0,31978.0,0.1771]
[1609750507873,0.14033567,31979.0,31975.0,0.15083]
[1609750508075,4.6079,31976.0,31964.0,2.10353261]
[1609750508475,4.6079,31976.0,31945.0,0.356]
[1609750508476,4.6079,31976.0,31961.0,0.1771]
[1609750509274,0.14033567,31962.0,31961.0,0.1771]
[1609750509476,0.65543567,31962.0,31961.0,0.1771]
[1609750512077,0.14033567,31962.0,31946.0,2.11036008]
[1609750512276,4.8812,31947.0,31946.0,2.11036008]
[1609750512976,4.8812,31947.0,31937.0,2.09650388]
[1609750513377,0.14033567,31938.0,31937.0,2.09650388]
[1609750513578,4.32903567,31938.0,31937.0,2.09650388]
[1609750513977,4.32903567,31938.0,31931.0,2.09911223]
[1609750513978,0.14033567,31938.0,31931.0,2.09911223]
[1609750514982,0.14033567,31938.0,31930.0,0.14033567]
[1609750515380,0.14033567,31931.0,31930.0,0.14033567]
[1609750517982,0.23393567,31931.0,31930.0,0.14033567]
[1609750519986,0.14033567,31931.0,31930.0,0.14033567]
[1609750521185,0.23373567,31931.0,31930.0,0.14033567]
[1609750521486,0.23373567,31931.0,31930.0,0.24820567]
[1609750523391,0.14033567,31931.0,31930.0,0.24820567]
[1609750524393,0.23403567,31931.0,31930.0,0.24820567]
[1609750524792,0.14033567,31931.0,31930.0,0.24820567]
[1609750525793,0.23293567,31931.0,31930.0,0.24820567]
[1609750527498,0.14033567,31931.0,31930.0,0.24820567]
[1609750528098,4.3076,31948.0,31930.0,0.24820567]
[1609750528299,0.14921,31950.0,31930.0,0.24820567]
[1609750528500,0.10406,31958.0,31930.0,0.24820567]
[1609750528901,4.1157,31970.0,31931.0,0.1771]
[1609750529300,4.1157,31970.0,31931.0,0.5331]
[1609750529502,0.25203567,31952.0,31950.0,0.14033567]
[1609750530703,0.25203567,31952.0,31932.0,3.7608]
[1609750530704,0.0942,31951.0,31932.0,3.7608]
[1609750531404,0.0942,31951.0,31942.0,0.14033567]
[1609750531604,0.0942,31951.0,31942.0,0.29292567]
[1609750532506,4.0298,31960.0,31942.0,0.15259]
[1609750533504,0.14033567,31943.0,31942.0,0.15259]
[1609750535407,0.14033567,31943.0,31942.0,0.29292567]
[1609750536008,0.14033567,31943.0,31942.0,0.15259]
[1609750536609,0.14033567,31943.0,31931.0,0.356]
[1609750537412,3.9201,31944.0,31937.0,0.14033567]
[1609750537810,3.9201,31944.0,31937.0,0.24059567]
[1609750539511,0.14033567,31938.0,31937.0,0.24059567]
[1609750539913,0.74603567,31938.0,31937.0,0.10026]
[1609750540212,0.74603567,31938.0,31908.0,4.9387]
[1609750540418,0.14033567,31938.0,31909.0,0.5331]
[1609750540615,4.6581,31922.0,31899.0,2.07062649]
[1609750541417,4.6581,31922.0,31890.0,0.1771]
[1609750541615,0.14033567,31900.0,31895.0,0.14033567]
[1609750541818,0.14033567,31900.0,31890.0,0.1771]
[1609750542222,0.65593567,31900.0,31873.0,3.8852]
[1609750542421,0.14033567,31900.0,31872.0,0.356]
[1609750542618,4.7621,31896.0,31872.0,0.356]
[1609750543818,4.7621,31896.0,31868.0,0.1771]
[1609750544019,4.7621,31896.0,31872.0,0.11066]
[1609750544219,0.296,31907.0,31872.0,0.11066]
[1609750544419,5.155,31882.0,31872.0,0.11066]
[1609750545020,0.14623,31888.0,31872.0,0.11066]
[1609750545420,0.6326,31887.0,31872.0,0.11066]
[1609750545618,0.14033567,31873.0,31872.0,0.11066]
[1609750547221,0.14033567,31873.0,31860.0,0.14033567]
[1609750547623,0.14033567,31861.0,31860.0,0.14033567]
[1609750548021,0.14033567,31861.0,31837.0,4.2224]
[1609750548421,0.14033567,31861.0,31837.0,4.35808]
[1609750549723,4.7618,31867.0,31851.0,0.09844]
[1609750550827,0.3003,31887.0,31851.0,0.09844]
[1609750551224,4.5674,31886.0,31851.0,0.09844]
[1609750551623,4.5674,31886.0,31869.0,0.14033567]
[1609750551824,0.3003,31887.0,31851.0,0.09844]
[1609750552225,4.8104,31880.0,31851.0,0.09844]
[1609750553626,0.14033567,31860.0,31859.0,0.14033567]
[1609750554727,4.8104,31880.0,31859.0,0.14033567]
[1609750555129,4.8104,31880.0,31859.0,0.15074]
[1609750555628,0.14033567,31860.0,31859.0,0.15074]
[1609750559632,0.14033567,31860.0,31859.0,0.29107567]
[1609750560032,0.14033567,31860.0,31859.0,0.15074]
[1609750560233,0.14033567,31860.0,31851.0,0.09844]
[1609750560432,0.14033567,31860.0,31840.0,5.0979]
[1609750561633,3.925,31874.0,31850.0,0.14033567]
[1609750562033,3.925,31874.0,31850.0,0.12528]
[1609750563436,3.925,31874.0,31840.0,5.0979]
[1609750563635,0.3003,31887.0,31850.0,0.11426]
[1609750563839,4.6742,31859.0,31850.0,0.11426]
[1609750565639,0.14033567,31851.0,31850.0,0.11426]
[1609750565837,0.64613567,31851.0,31850.0,0.11426]
[1609750566039,0.14033567,31851.0,31837.0,0.13568]
[1609750566242,5.045,31844.0,31808.0,3.5693]
[1609750566436,0.14033567,31851.0,31761.0,2.04874812]
[1609750566639,5.2048,31835.0,31788.0,4.0584]
[1609750567038,4.13965,31835.0,31788.0,4.0584]
[1609750567638,0.14033567,31820.0,31819.0,0.14033567]
[1609750567838,4.13965,31835.0,31819.0,0.14033567]
[1609750568238,4.13965,31835.0,31819.0,0.28329567]
[1609750568740,4.13965,31835.0,31819.0,0.14296]
[1609750569840,0.14033567,31820.0,31819.0,0.14296]
[1609750570039,0.2999,31850.0,31819.0,0.14296]
[1609750570839,4.2783,31854.0,31819.0,0.14296]
[1609750571640,0.2779,31880.0,31819.0,0.14296]
[1609750571840,0.2779,31880.0,31845.0,0.14033567]
[1609750572040,0.2779,31880.0,31845.0,0.25340567]
[1609750572541,0.9119,31880.0,31845.0,0.25340567]
[1609750573944,0.9119,31880.0,31850.0,0.14033567]
[1609750574948,0.2779,31880.0,31850.0,0.14033567]
[1609750575946,0.2779,31880.0,31867.0,0.14033567]
[1609750576947,0.2779,31880.0,31858.0,0.1278]
[1609750577848,0.13257,31881.0,31871.0,0.14033567]
[1609750578048,0.2789,31901.0,31871.0,0.14033567]
[1609750579653,0.2789,31901.0,31877.0,4.333]
[1609750579852,0.14033567,31902.0,31900.0,0.14033567]
[1609750580452,2.58933434,31934.0,31900.0,0.14033567]
[1609750580854,4.9496,31940.0,31900.0,0.14033567]
[1609750581153,2.59965954,31945.0,31900.0,0.14033567]
[1609750581956,2.61419608,31952.0,31906.0,0.14033567]
[1609750583161,2.61377662,31954.0,31906.0,0.14033567]
[1609750583861,7.41272671,31956.0,31920.0,0.14033567]
[1609750584459,6.53434119,31966.0,31920.0,0.14033567]
[1609750584460,2.8970559,31963.0,31920.0,0.14033567]
[1609750585060,2.61307331,31966.0,31920.0,0.14033567]
[1609750585861,2.61307331,31966.0,31926.0,0.14033567]
[1609750585862,2.62499868,31963.0,31926.0,0.14033567]
[1609750586061,2.73893868,31963.0,31926.0,0.14033567]
[1609750586262,0.11394,31963.0,31926.0,0.14033567]
[1609750587962,0.14033567,31927.0,31926.0,0.14033567]
[1609750588163,0.14033567,31927.0,31916.0,0.10149]
[1609750588664,0.14033567,31927.0,31902.0,0.14561]
[1609750589066,0.14033567,31927.0,31898.0,4.9808]
[1609750589964,0.11562,31933.0,31898.0,4.9808]
[1609750591970,0.11562,31933.0,31900.0,0.14033567]
[1609750593069,0.11562,31933.0,31898.0,4.9808]
[1609750593270,0.14688,31933.0,31898.0,4.9808]
[1609750593970,0.14033567,31899.0,31898.0,4.9808]
[1609750594169,0.24707567,31899.0,31887.0,0.12251]
[1609750594569,0.24707567,31899.0,31880.0,4.2546]
[1609750595680,0.24707567,31899.0,31871.0,0.2978]
[1609750596076,0.10674,31899.0,31875.0,0.14033567]
[1609750597972,0.10674,31899.0,31874.0,4.3545]
[1609750599273,0.10308,31899.0,31874.0,4.3545]
[1609750599975,0.10308,31899.0,31886.0,0.14033567]
[1609750600677,0.10308,31899.0,31886.0,0.76543567]
[1609750600977,0.2875,31920.0,31886.0,0.14033567]
[1609750601178,0.2875,31920.0,31889.0,3.9997]
[1609750601979,0.14033567,31907.0,31906.0,0.14033567]
[1609750602178,0.25136567,31907.0,31906.0,0.14033567]
[1609750602780,0.11103,31907.0,31906.0,0.14033567]
[1609750603080,0.2875,31920.0,31906.0,0.14033567]
[1609750604080,0.2875,31920.0,31917.0,0.14033567]
[1609750605482,0.14688,31933.0,31917.0,0.14033567]
[1609750605684,4.6241,31952.0,31917.0,0.14033567]
[1609750606082,0.14033567,31918.0,31909.0,3.5448]
[1609750607090,0.12279,31923.0,31909.0,3.5448]
[1609750608086,0.12279,31923.0,31922.0,0.14033567]
[1609750608285,0.12279,31923.0,31909.0,3.5448]
[1609750608685,0.12279,31923.0,31903.0,0.1558]
[1609750610093,0.12279,31923.0,31913.0,0.14033567]
[1609750611287,3.7337,31950.0,31905.0,3.6284]
[1609750612087,0.14033567,31918.0,31916.0,0.14033567]
[1609750614090,0.14176,31926.0,31916.0,0.14033567]
[1609750614490,0.14176,31926.0,31903.0,0.1558]
[1609750614691,0.14176,31926.0,31896.0,0.11825]
[1609750615092,0.14176,31926.0,31892.0,4.832]
[1609750616092,0.14033567,31914.0,31913.0,0.14033567]
[1609750617294,0.14863,31919.0,31913.0,0.14033567]
[1609750618096,0.14863,31919.0,31918.0,0.14033567]
[1609750620199,0.14863,31919.0,31918.0,4.85223567]
[1609750621799,0.14176,31926.0,31918.0,4.85223567]
[1609750622197,0.14033567,31939.0,31925.0,0.14033567]
[1609750622397,0.14033567,31939.0,31929.0,4.8879]
[1609750622597,0.2761,31960.0,31929.0,4.8879]
[1609750622797,0.2761,31960.0,31931.0,4.7925]
[1609750624099,0.14033567,31947.0,31944.0,0.14033567]
[1609750624499,0.27574567,31947.0,31944.0,0.14033567]
[1609750625101,0.13541,31947.0,31944.0,0.14033567]
[1609750625501,0.13541,31947.0,31944.0,0.73903567]
[1609750625901,0.13355,31948.0,31944.0,0.14033567]
[1609750626300,0.13355,31948.0,31946.0,4.5993]
[1609750627202,2.94385131,31975.0,31946.0,4.5993]
[1609750627601,2.94385131,31975.0,31946.0,4.72215]
[1609750628203,2.94385131,31975.0,31967.0,0.14033567]
[1609750629601,2.64725131,31975.0,31967.0,0.14033567]
[1609750630203,2.64725131,31975.0,31974.0,0.14033567]
[1609750630604,2.64725131,31975.0,31974.0,0.66793567]
[1609750630806,2.6450627,31977.0,31974.0,0.66793567]
[1609750631605,2.66775579,32005.0,31974.0,0.14033567]
[1609750631805,2.64218488,32008.0,31977.0,5.1949]
[1609750632106,0.14033567,31991.0,31987.0,0.14033567]
[1609750632305,0.26494567,31991.0,31960.0,0.14045]
[1609750632605,0.26494567,31991.0,31965.0,4.9299]
[1609750634206,0.12461,31991.0,31977.0,0.14033567]
[1609750635107,0.12461,31991.0,31965.0,4.9299]
[1609750636309,0.12461,31991.0,31972.0,0.14033567]
[1609750637208,0.12461,31991.0,31965.0,4.9299]
[1609750637410,2.64389492,32000.0,31950.0,0.0114]
[1609750637609,4.1273,31988.0,31950.0,0.0114]
[1609750637809,4.28393,31988.0,31950.0,0.0114]
[1609750638210,0.14033567,31951.0,31950.0,0.0114]
[1609750638412,0.24935567,31951.0,31950.0,0.0114]
[1609750640014,0.10902,31951.0,31950.0,0.7352]
[1609750640213,0.10902,31951.0,31950.0,0.87553567]
[1609750641413,0.10902,31951.0,31950.0,0.7352]
[1609750642213,0.24935567,31951.0,31950.0,0.87553567]
[1609750642613,0.24935567,31951.0,31950.0,0.7352]
[1609750644214,0.24935567,31951.0,31950.0,0.87553567]
[1609750645315,0.298,31986.0,31950.0,0.87553567]
[1609750646316,0.298,31986.0,31962.0,0.14033567]
[1609750648316,0.14033567,31965.0,31962.0,0.14033567]
[1609750648516,0.28852567,31965.0,31962.0,0.14033567]
[1609750650619,0.28852567,31965.0,31951.0,4.7443]
[1609750651018,0.28852567,31965.0,31950.0,0.0114]
[1609750652224,0.14819,31965.0,31956.0,0.14033567]
[1609750653623,4.0823,31976.0,31956.0,0.14033567]
[1609750653825,4.0823,31976.0,31950.0,0.0114]
[1609750654024,4.23237,31976.0,31950.0,0.0114]
[1609750654224,0.14033567,31951.0,31950.0,0.0114]
[1609750654426,0.14033567,31951.0,31943.0,0.14033567]
[1609750654626,0.24728567,31951.0,31932.0,0.1771]
[1609750654827,0.24728567,31951.0,31921.0,4.7942]
[1609750655026,0.24728567,31951.0,31901.0,0.1771]
[1609750656226,0.10695,31951.0,31930.0,0.14033567]
[1609750656826,0.10695,31951.0,31917.0,0.14231]
[1609750657828,0.10695,31951.0,31901.0,0.1771]
[1609750658229,0.10695,31951.0,31915.0,0.14033567]
[1609750659631,0.2928,31952.0,31915.0,0.14033567]
[1609750660232,0.14033567,31916.0,31915.0,0.14033567]
[1609750660432,0.25451567,31916.0,31915.0,0.14033567]
[1609750661635,0.11418,31916.0,31915.0,0.14033567]
[1609750663336,0.14271,31923.0,31915.0,0.14033567]
[1609750664241,0.14271,31923.0,31922.0,0.14033567]
[1609750665240,0.14271,31923.0,31906.0,0.15364]
[1609750666241,0.14271,31923.0,31916.0,0.14033567]
[1609750667542,4.3268,31940.0,31904.0,3.9075]
[1609750667743,4.3268,31940.0,31873.0,0.1771]
[1609750667744,0.2787,31951.0,31873.0,0.1771]